Cogmind - Beta 13 *** ADVENTURER MODE // 2024.05.03 @ 03:34:44 Player: Ghosty Result: Destroyed by G-34 Mercenary with Small Laser Performance ------------- Evolutions (1) 500 Regions Visited (3) 600 Robots Destroyed (7) 35 Value Destroyed (263) 263 Prototype IDs (2) 40 Alien Tech Used (0) 0 Bonus (0) 0 TOTAL SCORE: 1438 Bonus ------- None Cogmind --------- Core Integrity 0/400 Matter 241/300 Energy 49/100 System Corruption 0% Temperature Cool (6) Movement Core (100) Ox1 Location -9/Materials Parts ------- > --- POWER (1) -------- (None) > --- PROPULSION (2) --- (None) > --- UTILITY (4) ------ Heat Sink > --- WEAPON (2) ------- EMP Blaster > --- INVENTORY (5) ---- Small Storage Unit Medium Storage Unit High-capacity Matter Pod (200) Peak State ------------ > --- POWER ------------ Light Ion Engine > --- PROPULSION ------- Light Treads Light Treads > --- UTILITY ---------- Large Storage Unit Improved Terrain Scanner > --- WEAPON ----------- Medium Laser Bore Cannon > --- INVENTORY -------- Light Ion Engine Aluminum Leg Aluminum Leg Heat Sink Small Storage Unit Medium Storage Unit Medium Storage Unit Large Storage Unit High-capacity Battery High-capacity Matter Pod EM Pulse Gun Grenade Launcher [Rating: 14] Favorites ----------- Power Light Ion Engine Engine Light Ion Engine Propulsion Light Treads Treads Light Treads Leg Aluminum Leg Wheel Wheel Utility Large Storage Unit Device Improved Terrain Scanner Storage Large Storage Unit Weapon EM Pulse Gun Energy Gun EM Pulse Gun Ballistic Cannon Bore Cannon Launcher EMP Blaster Build | -11 -10 -10 -9 ------- Run | Yrd Mat Min Mat Slots Evolved 2 | . . . 2 Power . | . . . . Propulsion . | . . . . Utility 2 | . . . 2 Weapon . | . . . . Parts Attached 34 | 8 6 7 13 Power 3 | 1 . 1 1 Engine 3 | 1 . 1 1 Core . | . . . . Reactor . | . . . . Propulsion 13 | 3 4 2 4 Treads 5 | 1 3 . 1 Leg 6 | . 1 2 3 Wheel 2 | 2 . . . Hover . | . . . . Flight . | . . . . Utility 9 | 2 1 . 6 Device 3 | 1 . . 2 Storage 6 | 1 1 . 4 Processor . | . . . . Hackware . | . . . . Protection . | . . . . Artifact . | . . . . Weapon 9 | 2 1 4 2 Energy Gun 4 | 2 1 1 . Energy Cannon . | . . . . Ballistic Gun . | . . . . Ballistic Cannon 1 | . . 1 . Launcher 4 | . . 2 2 Special Weapon . | . . . . Impact Weapon . | . . . . Slashing Weapon . | . . . . Piercing Weapon . | . . . . Special Melee Weapon . | . . . . Unidentified Prototypes . | . . . . Parts Lost 13 | . . 8 5 Power 3 | . . 2 1 Propulsion 4 | . . 1 3 Utility 1 | . . 1 . Weapon 5 | . . 4 1 Highest Loss Streak 5 | . . 5 3 To Critical Strikes . | . . . . Average Slot Usage (%) 69 | . 100 79 46 Engine 7 | . 14 10 1 Treads 11 | . 22 17 . Leg 8 | . . 8 13 Wheel 1 | . 5 . . Device 8 | . 14 7 5 Storage 17 | . 14 14 22 Energy Gun 10 | . 28 12 . Ballistic Cannon 1 | . . 3 . Launcher 2 | . . 3 2 Naked Turns 55 | . . . 55 Heaviest Build 54 | 13 28 35 54 Greatest Support 40 | 20 40 40 26 Greatest Overweight (x) 11 | . . 8 11 Average Overweight (x) . | . . . . Largest Inventory Capacity 15 | 8 15 15 15 Average Capacity 12 | 6 13 15 11 Most Carried 14 | 6 14 13 11 Average Carried 8 | 3 10 11 5 Final Capacity 15 | 8 15 15 5 Final Carried 14 | 6 14 12 3 Class Distribution -------------------- 100% | Mutant Dominant Class ---------------- Mutant | -10/Materials Mutant | -10/Mines Mutant | -9/Materials Resources | -11 -10 -10 -9 ----------- Run | Yrd Mat Min Mat Matter Collected 786 | 243 . 501 42 Remotely . | . . . . Salvage Created 289 | 14 . 171 104 Parts 5 | 3 . . 2 Haulers Intercepted . | . . . . Recyclers Shooed . | . . . . Parts Field Recycled . | . . . . Retrieved Matter . | . . . . Parts Self-Destructed . | . . . . Prevented . | . . . . Kills | -11 -10 -10 -9 ------- Run | Yrd Mat Min Mat Combat Hostiles Destroyed 16 | . . 14 2 Guns 7 | . . 7 . Cannons 6 | . . 6 . AOE 2 | . . 1 1 Classes Destroyed 7 | 1 . 2 4 Builder 1 | . . . 1 Tunneler 1 | 1 . . . Operator 1 | . . . 1 Grunt 1 | . . . 1 Sentry 1 | . . . 1 Demolisher 2 | . . 2 . Assembled 12 | . . 12 . Best Kill Streak 3 | 1 . 3 1 Combat Bots Only 3 | . . 3 1 Max Kills in Single Turn 2 | 1 . 2 1 Gunslinging . | . . . . Exploded 1 | . . 1 1 Melee . | . . . . Uniques/NPCs Destroyed . | . . . . Combat | -11 -10 -10 -9 -------- Run | Yrd Mat Min Mat Hostile Shots Fired 146 | . . 60 86 Missed 31 | . . 14 17 Damage Taken 1724 | . . 876 848 Core 595 | . . 191 404 Absorbed by Shields . | . . . . Ignored by Resistances 470 | . . 243 227 Core Remaining (%) 61 | 100 . 23 . Volleys Fired 71 | 1 . 55 15 Largest 2 | 2 . 2 1 Hottest 107 | 80 . 107 33 Shots Fired 94 | 2 . 77 15 Gun 59 | 2 . 57 . Cannon 12 | . . 12 . Launcher 23 | . . 8 15 Special . | . . . . Kinetic 12 | . . 12 . Thermal 26 | . . 26 . Explosive 14 | . . 8 6 Electromagnetic 42 | 2 . 31 9 Robot Hit Streak 13 | 1 . 12 13 Robot Miss Streak 2 | . . 2 2 Penetration Max 1 | . . 1 . Secondary Targets . | . . . . Shots Hit Robots 69 | 1 . 59 9 Core Hits 40 | 1 . 31 8 Critical Kills 5 | . . 5 . Critical Parts Destroyed 2 | . . 2 . Critical Strikes 11 | . . 11 . Burn 3 | . . 3 . Destroy 7 | . . 7 . Corrupt 1 | . . 1 . Melee Attacks . | . . . . Impact . | . . . . Slashing . | . . . . Piercing . | . . . . Sneak Attacks . | . . . . Combat Hostiles . | . . . . Follow-up Attacks . | . . . . Damage Inflicted 1385 | 15 . 904 466 Guns 557 | 15 . 542 . Cannons 289 | . . 289 . Explosions 466 | . . 73 393 Melee . | . . . . Ramming 73 | . . . 73 Kinetic 289 | . . 289 . Thermal 346 | . . 258 88 Explosive 211 | . . 73 138 Electromagnetic 466 | 15 . 284 167 Impact . | . . . . Slashing . | . . . . Piercing . | . . . . Highest Corruption 4 | . . 4 . Average Corruption 3 | . . 3 . Corruption Purged . | . . . . Corruption Blocked . | . . . . Effects 5 | . . 5 . Message Errors 1 | . . 1 . Matter Fused 1 | . . 1 . Heat Flow Errors 1 | . . 1 . Energy Discharges 2 | . . 2 . Overload Shots . | . . . . Overflow Damage 34 | . . 2 32 Projectiles 2 | . . 2 . Explosions 32 | . . . 32 Melee . | . . . . Knockbacks 4 | . . 4 . Impact . | . . . . Kinetic 4 | . . 4 . Secondary . | . . . . Self-Inflicted Damage 30 | . . 8 22 Shots 3 | . . 1 2 Rammed 5 | . . . 5 Targets Rammed 32 | . . . 32 Kicked 27 | . . . 27 Crushed . | . . . . Highest Temperature 244 | 18 . 244 19 Average Temperature 77 | 12 . 80 11 Received Heat Transfer 422 | . . 20 402 Effects 1 | . . 1 . Interference 1 | . . 1 . Siege Activations . | . . . . Robots Corrupted . | . . . . Combat Hostiles . | . . . . Parts Fried . | . . . . Impact Corruptions . | . . . . Robots Melted . | . . . . Combat Hostiles . | . . . . Parts Melted . | . . . . Heat Transferred 1049 | . . 999 50 Parts Sabotaged . | . . . . Parts Stolen . | . . . . Parts Stripped . | . . . . Power Chain Reactions . | . . . . Alert | -11 -10 -10 -9 ------- Run | Yrd Mat Min Mat Peak Influence 170 | 5 2 69 170 Initial 6 | . 2 . 6 Average 29 | . 2 35 41 Maximum Alert Level . | . . . . Low Security (%) 100 | 100 100 100 100 Level 1 . | . . . . Level 2 . | . . . . Level 3 . | . . . . Level 4 . | . . . . Level 5 . | . . . . High Security . | . . . . Max Security . | . . . . Squads Dispatched 2 | . . . 2 Investigation 2 | . . . 2 Extermination . | . . . . Reinforcement . | . . . . Assault . | . . . . Garrison . | . . . . Intercept . | . . . . Searches Triggered . | . . . . Construction Impeded . | . . . . Haulers Reinforced . | . . . . Active Scanning Responses . | . . . . Cargo Convoy Interrupts . | . . . . Stealth | -11 -10 -10 -9 --------- Run | Yrd Mat Min Mat Distress Signals 1 | . . . 1 Communications Jammed . | . . . . Distress Signals . | . . . . Times Spotted 32 | . . 19 13 Peak Tracking Total 5 | . . 5 3 Tactical Retreats 3 | . . . 3 Traps | -11 -10 -10 -9 ------- Run | Yrd Mat Min Mat Traps Triggered . | . . . . Indirectly . | . . . . Trap Hack Attempts . | . . . . Triggered . | . . . . Disarmed . | . . . . Reprogrammed . | . . . . Reused . | . . . . Traps Extracted . | . . . . Installed . | . . . . Triggered . | . . . . Machines | -11 -10 -10 -9 ---------- Run | Yrd Mat Min Mat Machines Disabled 5 | . . 1 4 Max in Single Turn 2 | . . 1 2 Machines Repaired . | . . . . Machines Dismantled . | . . . . Machines Sabotaged . | . . . . Overloaded Fab Kills . | . . . . Hacking | -11 -10 -10 -9 --------- Run | Yrd Mat Min Mat Machines Accessed 3 | . 1 . 2 Terminals 3 | . 1 . 2 Fabricators . | . . . . Repair Stations . | . . . . Recycling Units . | . . . . Scanalyzers . | . . . . Garrison Access . | . . . . Total Hacks 9 | . 2 . 7 Successful 3 | . . . 3 Failed 6 | . 2 . 4 Catastrophic . | . . . . Database Lockouts . | . . . . Manual 4 | . 2 . 2 Terminals 9 | . 2 . 7 Fabricators . | . . . . Repair Stations . | . . . . Recycling Units . | . . . . Scanalyzers . | . . . . Garrison Access . | . . . . Terminal Hacks 3 | . . . 3 Record 1 | . . . 1 Robot Analysis 1 | . . . 1 Prototype ID Bank 1 | . . . 1 Fabricator Hacks . | . . . . Repair Station Hacks . | . . . . Recycling Unit Hacks . | . . . . Scanalyzer . | . . . . Garrison Access Hacks . | . . . . Unauthorized Hacks . | . . . . Terminals . | . . . . Fabricators . | . . . . Repair Stations . | . . . . Recycling Units . | . . . . Scanalyzers . | . . . . Garrison Access . | . . . . Data Cores Recovered . | . . . . Used . | . . . . Hacking Detections 3 | . 1 . 2 Full Trace Events 2 | . . . 2 Feedback Events . | . . . . Feedback Blocked . | . . . . Robot Schematics Acquired . | . . . . Robots Built . | . . . . Authchips . | . . . . Time . | . . . . Total Robot Build Rating . | . . . . Part Schematics Acquired . | . . . . Parts Built . | . . . . Authchips . | . . . . Time . | . . . . Total Part Build Rating . | . . . . Parts Repaired . | . . . . Time . | . . . . Parts Recycled . | . . . . Recycled Matter . | . . . . Retrieved Matter . | . . . . Retrieved Components . | . . . . Parts Scanalyzed . | . . . . Part Schematics Acquired . | . . . . Parts Damaged . | . . . . Bothacking | -11 -10 -10 -9 ------------ Run | Yrd Mat Min Mat Used RIF Installer . | . . . . Robots Hacked . | . . . . Non-combat . | . . . . Combat . | . . . . Robot Hacks Applied . | . . . . Relay Couplers Released . | . . . . Fabnet Peak Effective % . | . . . . Robots Rewired . | . . . . Allies Hacked . | . . . . Hacks Repelled . | . . . . Allies | -11 -10 -10 -9 -------- Run | Yrd Mat Min Mat Total Allies . | . . . . Largest Group . | . . . . Highest-Rated Group . | . . . . Highest-Rated Ally . | . . . . Total Orders . | . . . . Ally Attacks . | . . . . Total Damage . | . . . . Kills . | . . . . Allies Corrupted . | . . . . Allies Melted . | . . . . Intel | -11 -10 -10 -9 ------- Run | Yrd Mat Min Mat Robot Analysis Total 1 | . . . 1 Derelict Logs Recovered . | . . . . Drone Launches . | . . . . Drone Recoveries . | . . . . Exploration | -11 -10 -10 -9 ------------- Run | Yrd Mat Min Mat Turns Passed 1555 | 77 309 540 629 Spaces Moved 819 | 67 214 238 300 Core 170 | 3 . 1 166 Treads 329 | 5 153 155 16 Legs 200 | . . 82 118 Wheels 120 | 59 61 . . Hover . | . . . . Flight . | . . . . Fastest Speed 50 | 50 80 120 50 Average Speed 139 | 84 137 166 131 Slowest Speed 600 | 160 160 450 600 Overloaded Moves . | . . . . Propulsion Burnouts . | . . . . Robots Hopped . | . . . . Cave-ins Triggered 1 | . . . 1 Exploration Rate (%) 26 | 3 26 61 14 Regions Visited 3 Branch Regions 1 Pre-discovered Areas . | . . . . Known Exits Taken . | . . . . Unknown Exits Taken 3 | 1 1 1 . Scrap Searched 1 | . . 1 . Spaces Dug . | . . . . Terrain Destroyed 78 | . . 40 38 Melee . | . . . . Projectile 8 | . . 8 . AOE 70 | . . 32 38 Terrain Rammed . | . . . . Walls Destroyed . | . . . . Machines Disabled . | . . . . Actions | -11 -10 -10 -9 --------- Run | Yrd Mat Min Mat Total 1085 | 81 232 305 467 Wait 105 | . . . 105 Move 816 | 66 213 237 300 Hop . | . . . . Pick Up 14 | 5 8 1 . Fast Attach 13 | 8 . 3 2 Attach 19 | . 5 4 10 Detach 10 | 1 4 3 2 Swap 2 | . 1 . 1 Drop 3 | . 1 2 . Fire 71 | 1 . 55 15 Melee . | . . . . Ram 5 | . . . 5 Kick 27 | . . . 27 Crush . | . . . . Escape Stasis . | . . . . Rewire . | . . . . Trap . | . . . . Miscellaneous . | . . . . Route ------- -11/Scrapyard -10/Materials -10/Mines -9/Materials History --------- Turn | Location | Event 8 | -11/Scrapyard | Discovered new exit (range 14) 78 | -11/Scrapyard | Entered Materials 287 | -10/Materials | Discovered new exit (range 12) 309 | -10/Materials | Build established: Mutant 387 | -10/Materials | Entered Mines 396 | -10/Mines | Assembled infested the area 401 | -10/Mines | Assisted by a Guerilla fighting off Assembled 666 | -10/Mines | Core integrity fell below 50% 716 | -10/Mines | Lost 5 parts (1p1n1u2w) 921 | -10/Mines | Discovered new exit (range 6) 927 | -10/Mines | Entered Materials 927 | -9/Materials | Evolved 2 slots: Utility x2 1012 | -9/Materials | Crushed by falling debris 1025 | -9/Materials | Core integrity fell below 50% 1046 | -9/Materials | Lost 3 parts (1p2n) 1046 | -9/Materials | Core integrity fell below 20% 1346 | -9/Materials | Released all parts (6) 1556 | -9/Materials | Destroyed by G-34 Mercenary with Small Laser Last Messages --------------- 01383_ R-06 Scavenger collects Lrg. Storage Unit. 01388_ R-06 Scavenger inserts Weight Redist. System into recycling unit. 01401_ Acquired EMP Blaster. 01433_ Fusion Modulator explodes. 01433_ Destroyed Ion Engine. 01452_ Lgt. Treads destroyed. 01462_ G-34 Mercenary destroyed. 01470_ U-05 Engineer lays Concrete. 01475_ Acquired 34 matter. 01476_ U-05 Engineer lays Concrete. 01493_ U-05 Engineer builds a Wall. 01496_ Terminal disabled. 01496_ Door malfunctions. 01497_ U-05 Engineer builds a Wall. 01505_ U-05 Engineer lays Concrete. 01512_ U-05 Engineer destroyed. 01528_ Door malfunctions. 01545_ Matter Filter disabled. 01545_ Door malfunctions. 01552_ U-05 Engineer lays Concrete. Map ----- +----------------------------------------------------+ | ?????????????????????????????# #???? | | ?????????????????????????????# #???? | | ?????????????????????????????# #???? | | ???????????????#####?????????# #???? | | ???????????????# #?????????# #???? | | ???????????????# T #########?# #???? | | ????????######## ## !! ### #???? | | ????????# # ## !! + #???? | | ????????# # ## ### #???? | | ????????# """# ## ! #?# #???? | | ????????# """# ## #?# #???? | | ????????# """##/### #?# #???? | | ????????# # #####+##### #???? | | ????????####+### ^ ^ #???? | | ??????????# ## g #####???? | | ??????????# # """ #???????? | | ??????????# # "Y ^ #???????? | | ??????????## ##" " #???????? | | ???????????# ### ! #???????? | | ????####???# ### #???????? | | ???##! #???# ###[= ###?????? | | ???#! #???# ###[ ""####### | | ???#! #??## ### T"# # | | ???#! #### t## ""# # | | ???#! u ### # | | ???##! #### ## !% [ [@ #?# # | | ????########+### [[[ ### # | | ????????# # [[ # # | | ????????# T # + # | | ????????# # # # | | ????????# #= ######### # # | | ????????# = # ###?????# # # | | ????????# %# # #?????# # # | | ????????#### ### # #?????# # # | | ???????????## ## #########/####### | | ???????????### # # """""%% #?????? | | ???????????## ## # """"%%% #?????? | | ????????????# # # """""%%%#?????? | | ????????????## # # """"%%" #?????? | | ?????????????### / """"""" #?????? | | ???????????????# # #?????? | | ???????????????# # #?????? | | ???????????????##### #?????? | | ???????????????????###########?????? | | ???????????????????????????????????? | | ???????????????????????????????????? | | ???????????????????????????????????? | | ???????????????????????????????????? | | ???????????????????????????????????? | | ???????????????????????????????????? | +----------------------------------------------------+ Best States ------------- Heat Dissipation 38 Energy Generation 10 Energy Capacity 375 Matter Stores 300 Matter Capacity 300 Sight Range 16 Terrain Scan Range 16 Terrain Scan Density 10 Additional Mass Support 6 Resistance: KI 20 Resistance: TH 20 Resistance: EX 20 Resistance: EM 20 Resistance: I 20 Resistance: S 20 Resistance: P 20 Evasion (%) 55 Recoil Reduction 2 Offensive Hacking 10 Item Schematics ----------------- None Robot Schematics ------------------ None Fabricated ------------ Nothing Alien Tech Used ----------------- None Achievements -------------- I Survived The Infestation Challenges ------------ None Game ------ Seed BackupCoordinationShredder Manual? 0 Play Time 00:16:42 Cumulative 16.0 hours Start 2024.05.03 @ 03:21:25 End 2024.05.03 @ 03:34:44 Sessions 1 Manual Loads 0 Difficulty Adventurer Special Mode None Game No. 23 Rogue 9 Adventurer 13 Explorer 1 Win Type - Total 0 Types 0/0/0/0/0/0/0/0/0 Lore% 18 Gallery% 22 Achievement% 21 Wizard Run 0 Options --------- Layout 0 ASCII 1 Keyboard 1 Movement Arrows Keybinds 0 Fullscreen 2 Font 24/Cog Map View 76x50 Zoom Use 0% Tactical HUD 1 Map Filters NONE Filters NONE Steam 1 RUN: 167f1887-a518-4da1-9216-a2429ddb61cc